bitfinex/quotes_ETHUSD_20250520
["timestamp","ask_amount","ask_price","bid_price","bid_amount"]
[1747781524899,4.45226003,2506.4,2506.3,0.47350185]
[1747781525100,13.37509301,2506.4,2506.3,0.47350185]
[1747781525418,4.54010454,2506.2,2506.1,0.1]
[1747781525727,8.23534688,2506.2,2506.1,0.1]
[1747781526049,5.33543752,2506.2,2506.1,0.1]
[1747781526241,4.78543752,2506.2,2506.1,0.1]
[1747781528821,4.41260454,2506.2,2506.1,0.1]
[1747781529721,3.99010454,2506.2,2506.1,0.1]
[1747781531441,0.4225,2507.6,2506.3,3.19188924]
[1747781531644,3.988354,2507.3,2506.5,0.8184]
[1747781531841,3.9894678,2506.6,2506.5,0.8184]
[1747781532032,4.32241595,2506.6,2506.5,28.43664017]
[1747781532236,4.32241595,2506.6,2506.5,26.0404]
[1747781532430,4.32241595,2506.6,2506.5,46.6964]
[1747781532631,4.32241595,2506.6,2506.5,48.6964]
[1747781532832,4.32241595,2506.6,2506.5,46.6964]
[1747781533118,4.32241595,2506.6,2506.5,45.878]
[1747781534270,4.32241595,2506.6,2506.5,17.222]
[1747781534569,4.32241595,2506.6,2506.5,37.878]
[1747781535359,3.9894678,2506.6,2506.5,37.878]
[1747781539965,3.9894678,2506.6,2506.5,28.908]
[1747781540188,3.9894678,2506.6,2506.5,37.876]
[1747781540853,3.9894678,2506.6,2506.5,28.907]
[1747781541154,3.9894678,2506.6,2506.5,37.876]
[1747781541568,12.4119678,2506.6,2506.5,28.907]
[1747781541950,12.78249009,2506.6,2506.5,28.907]
[1747781544623,3.9894678,2506.6,2506.5,28.907]
[1747781545770,9.98,2507.0,2506.5,31.23269129]
[1747781545981,3.98938556,2506.7,2506.6,9.7905]
[1747781546139,3.98938556,2506.7,2506.6,11.7905]
[1747781546327,3.98938556,2506.7,2506.6,9.7905]
[1747781546932,3.98938556,2506.7,2506.6,0.8215]
[1747781547125,3.98938556,2506.7,2506.6,20.78]
[1747781547945,3.98938556,2506.7,2506.6,24.56147262]
[1747781548462,3.98938556,2506.7,2506.6,20.78]
[1747781550761,11.98938556,2506.7,2506.6,11.811]
[1747781550968,11.98938556,2506.7,2506.6,20.78]
[1747781551266,3.98938556,2506.7,2506.6,20.78]
[1747781551643,3.9889396,2507.0,2506.7,0.8123]
[1747781551867,3.98901194,2506.9,2506.8,2.35923]
[1747781552379,3.98755881,2507.8,2506.9,0.8123]
[1747781552554,3.98875141,2507.1,2507.0,8.969]
[1747781552755,3.98875141,2507.1,2507.0,22.778]
[1747781553469,3.98875141,2507.1,2507.0,2.0]
[1747781553470,11.98875141,2507.1,2507.0,2.0]
[1747781553670,3.98883127,2507.0,2506.9,0.8123]
[1747781553863,3.98883127,2507.0,2506.9,21.5903]
[1747781555952,3.9894678,2506.6,2506.5,25.222]
[1747781556152,3.9894678,2506.6,2506.5,40.0]
[1747781556371,3.9894678,2506.6,2506.5,43.90236288]
[1747781556577,3.9894678,2506.6,2506.5,52.69006288]
[1747781557285,3.9894678,2506.6,2506.5,53.06936156]
[1747781557449,3.9894678,2506.6,2506.5,32.29136156]
[1747781557649,3.9894678,2506.6,2506.5,17.60129868]
[1747781557887,3.9894678,2506.6,2506.5,38.37929868]
[1747781558761,3.9894678,2506.6,2506.5,38.0]
[1747781559382,3.98880607,2507.1,2506.5,38.0]
[1747781559584,3.98925796,2506.8,2506.6,0.7706]
[1747781559788,3.98925796,2506.8,2506.7,3.13765616]
[1747781560387,3.98925796,2506.8,2506.7,3.51754583]
[1747781560562,3.98925796,2506.8,2506.7,0.37988967]
[1747781560882,3.98925796,2506.8,2506.7,21.15688967]
[1747781561486,3.98925796,2506.8,2506.7,20.777]
[1747781567074,3.98925796,2506.8,2506.5,17.222]
[1747781567075,3.9894678,2506.6,2506.5,17.222]
[1747781567280,3.9894678,2506.6,2506.5,45.998]
[1747781568078,3.9894678,2506.6,2506.5,37.998]
[1747781569994,3.9894678,2506.6,2506.5,17.222]
[1747781570194,3.9894678,2506.6,2506.5,37.998]
[1747781571894,3.9894678,2506.6,2506.5,17.222]
[1747781572096,4.36174721,2506.6,2506.5,38.0]
[1747781573986,14.76424721,2506.6,2506.5,37.895]
[1747781574605,22.76424721,2506.6,2506.5,17.222]
[1747781574809,22.76424721,2506.6,2506.5,28.927]
[1747781575207,26.03698955,2506.6,2506.5,28.927]
[1747781575378,26.58698955,2506.6,2506.5,11.705]
[1747781577407,16.60698955,2506.6,2506.5,11.705]
[1747781579212,8.60698955,2506.6,2506.5,11.705]
[1747781580409,4.78424721,2506.6,2506.5,11.705]
[1747781580615,4.36174721,2506.6,2506.5,20.674]
[1747781580910,4.36174721,2506.6,2506.5,23.57]
[1747781581215,3.9894678,2506.6,2506.5,23.57]
[1747781582113,3.9894678,2506.6,2506.5,21.5056]
[1747781582413,3.9894678,2506.6,2506.5,20.677]
[1747781582912,3.98978614,2506.4,2506.3,0.7588]
[1747781583104,3.98978614,2506.4,2506.3,21.4358]
[1747781583495,3.98978614,2506.4,2506.3,0.7588]
[1747781583898,3.99010454,2506.2,2506.1,0.8588]
[1747781584104,3.99010454,2506.2,2506.1,29.5358]
[1747781584717,3.99010454,2506.2,2506.1,32.48938]
[1747781585902,3.99010454,2506.2,2506.1,23.51938]
[1747781586104,3.99010454,2506.2,2506.1,32.48938]
[1747781590631,3.99010454,2506.2,2506.1,11.81238]
[1747781590837,3.99010454,2506.2,2506.1,29.5358]
[1747781592882,3.99010454,2506.2,2506.1,20.776]
[1747781593328,3.99010454,2506.2,2506.1,11.807]
[1747781593496,3.99010454,2506.2,2506.1,20.776]
[1747781594804,4.36248659,2506.2,2506.1,20.776]
[1747781595342,4.36248659,2506.2,2506.1,32.06039536]
[1747781596051,3.99010454,2506.2,2506.1,32.06039536]
[1747781596415,3.99010454,2506.2,2506.1,32.44075659]
[1747781597147,0.4225,2507.0,2506.2,8.0]
[1747781597346,3.98994533,2506.3,2506.2,8.0]
[1747781597552,3.98994533,2506.3,2506.2,10.0]
[1747781598050,3.98963043,2506.5,2506.3,0.7908]
[1747781598354,3.98805402,2507.5,2506.5,0.7908]
[1747781598355,3.98954488,2506.6,2506.5,0.7908]
[1747781598552,3.98954488,2506.6,2506.5,22.4978]
[1747781598766,3.98954488,2506.6,2506.5,20.4978]
[1747781598919,3.98954488,2506.6,2506.5,22.4978]
[1747781600420,3.98954488,2506.6,2506.5,22.87816123]
[1747781600621,3.98954488,2506.6,2506.5,25.16597735]
[1747781600954,3.98954488,2506.6,2506.5,13.45897735]
[1747781601118,3.98954488,2506.6,2506.5,29.84716123]
[1747781601319,3.98954488,2506.6,2506.5,29.05636123]
[1747781601820,3.98954488,2506.6,2506.5,30.676]
[1747781602050,3.98954488,2506.6,2506.5,31.4602]
[1747781602955,3.98933029,2506.7,2506.6,8.0]
[1747781602956,3.98930865,2506.7,2506.6,8.0]
[1747781603254,3.98930865,2506.7,2506.6,11.14602]
[1747781603464,4.41083823,2507.4,2506.6,11.14602]
[1747781603465,0.4225,2507.4,2506.6,11.14602]
[1747781603676,3.98839471,2507.3,2506.8,8.8088]
[1747781603869,3.98851308,2507.2,2507.1,0.8088]
[1747781604166,3.98851308,2507.2,2507.1,14.4978]
[1747781604852,3.98851308,2507.2,2507.1,14.87758024]
[1747781605057,3.98770612,2507.8,2507.2,8.0]
[1747781605357,3.988354,2507.3,2507.2,8.20279096]
[1747781605561,3.988354,2507.3,2507.2,19.17179096]
[1747781605765,3.988354,2507.3,2507.2,20.3603712]
[1747781607630,3.98739981,2507.9,2507.2,20.3603712]
[1747781607849,3.98726296,2508.0,2507.3,0.8164]
[1747781608078,3.9879759,2507.6,2507.4,9.83679712]
[1747781608260,3.9879759,2507.6,2507.5,10.0]
[1747781608460,0.37121368,2508.3,2507.6,0.8164]
[1747781608759,3.98724082,2508.0,2507.9,0.7944]
[1747781609065,3.98724082,2508.0,2507.9,19.7614]
[1747781609374,3.98724082,2508.0,2507.9,23.66376288]
[1747781610581,3.98724082,2508.0,2507.9,8.0]
[1747781610785,3.98724082,2508.0,2507.9,28.652]
[1747781617596,3.98724082,2508.0,2507.9,29.4651]
[1747781618706,3.98724082,2508.0,2507.9,29.4951]
[1747781618909,3.98724082,2508.0,2507.9,31.4951]
[1747781619112,3.98724082,2508.0,2507.9,35.39746288]
[1747781620211,0.1,2508.9,2508.7,0.7537]
[1747781620379,0.1,2508.9,2508.8,49.1637]
[1747781620580,0.1,2508.9,2508.8,53.06606288]
[1747781620980,0.1,2508.9,2508.8,56.25483839]
[1747781621306,0.1,2508.9,2508.8,57.5769061]
[1747781621505,0.1,2508.9,2508.8,56.90910351]
[1747781621698,0.1,2508.9,2508.8,32.79490163]
[1747781621870,0.1,2508.9,2508.8,53.43790163]
[1747781622997,0.1,2508.9,2508.8,54.13790163]
[1747781624482,0.1,2508.9,2508.8,55.98094226]
[1747781624783,0.1,2508.9,2508.8,57.98094226]
[1747781625305,0.1,2508.9,2508.8,57.32667714]
[1747781625902,0.1,2509.9,2509.2,0.55]
[1747781626220,3.98469875,2509.6,2509.5,0.8317]
[1747781626518,3.98443461,2509.8,2509.5,0.8317]
[1747781626519,3.98462944,2509.7,2509.6,8.0]
[1747781626681,3.98469875,2509.6,2509.5,0.8317]
[1747781626878,3.98469875,2509.6,2509.5,10.8317]
[1747781627078,3.98462944,2509.7,2509.6,8.0]
[1747781627314,3.98453998,2509.7,2509.6,1.88317]
[1747781627486,3.98469875,2509.6,2509.5,0.8317]
[1747781627693,3.98469875,2509.6,2509.5,2.8317]
[1747781628615,3.98469875,2509.6,2509.5,30.638]
[1747781628812,3.98469875,2509.6,2509.5,33.15034459]
[1747781629783,3.98469875,2509.6,2509.5,12.91191472]
[1747781629985,3.98469875,2509.6,2509.5,31.03757013]
[1747781630985,3.98469875,2509.6,2509.5,31.03657013]
[1747781632123,3.98469875,2509.6,2509.5,29.03557013]
[1747781633705,3.98469875,2509.6,2509.5,8.39957013]
[1747781633899,3.98469875,2509.6,2509.5,29.03457013]
[1747781634220,3.98469875,2509.6,2509.5,8.0]
[1747781634531,3.98469875,2509.6,2509.5,28.633]
[1747781637530,3.98517514,2509.3,2508.9,0.7872]
[1747781637737,3.98565165,2509.0,2508.9,8.7872]
[1747781637907,3.98565165,2509.0,2508.9,34.01912]
[1747781638821,3.98565165,2509.0,2508.9,26.01912]
[1747781639020,3.98565165,2509.0,2508.9,25.23192]
[1747781639266,3.98565165,2509.0,2508.9,25.62038818]
[1747781639625,3.98565165,2509.0,2508.9,0.38846818]
[1747781639948,3.98565165,2509.0,2508.8,17.212]
[1747781639949,3.98581051,2508.9,2508.8,17.212]
[1747781640153,3.98581051,2508.9,2508.8,37.844]
[1747781640354,3.98581051,2508.9,2508.8,47.844]
[1747781640761,3.98581051,2508.9,2508.8,45.844]
[1747781641956,3.98581051,2508.9,2508.8,37.27429345]
[1747781642261,3.98581051,2508.9,2508.8,37.844]
[1747781642556,3.98581051,2508.9,2508.8,45.844]
[1747781646669,3.98581051,2508.9,2508.8,17.212]
[1747781646832,4.81601051,2508.9,2508.8,37.846]
[1747781648734,4.81601051,2508.9,2508.8,17.212]
[1747781648932,4.81601051,2508.9,2508.8,28.888]
[1747781649145,5.18695067,2508.9,2508.8,28.888]
[1747781651754,4.81601051,2508.9,2508.8,28.888]
[1747781657345,4.81601051,2508.9,2508.8,37.848]
[1747781658240,3.98581051,2508.9,2508.8,41.25585591]
[1747781660571,3.98581051,2508.9,2508.8,37.848]
[1747781661151,3.98581051,2508.9,2508.8,37.85]
[1747781662387,3.98581051,2508.9,2508.8,17.212]
[1747781662595,3.98581051,2508.9,2508.8,37.85]
[1747781664485,4.35729378,2508.9,2508.8,37.85]
[1747781664871,5.16229378,2508.9,2508.8,37.85]
[1747781665073,5.16229378,2508.9,2508.8,37.847]
[1747781665799,5.16229378,2508.9,2508.8,28.886]
[1747781668131,5.71229378,2508.9,2508.8,28.886]
[1747781671208,5.71229378,2508.9,2508.8,11.674]
[1747781672417,5.16229378,2508.9,2508.8,11.674]
[1747781672785,4.35729378,2508.9,2508.8,11.674]
[1747781675224,12.35729378,2508.9,2508.8,11.674]
[1747781675721,11.98612827,2508.7,2508.6,0.6667]
[1747781675920,11.98612827,2508.7,2508.6,21.3047]
[1747781676125,12.35761154,2508.7,2508.6,21.3047]
[1747781688134,12.35761154,2508.7,2508.6,0.6667]
[1747781688336,12.35761154,2508.7,2508.6,21.3067]
[1747781691740,12.35761154,2508.7,2508.6,0.6667]
[1747781691957,13.15531154,2508.7,2508.6,21.3047]
[1747781692306,5.15531154,2508.7,2508.6,21.3047]
[1747781692906,4.78382827,2508.7,2508.6,21.3047]
[1747781693434,3.98612827,2508.7,2508.6,21.3047]
[1747781693607,4.35916657,2508.7,2508.6,21.3047]
[1747781695864,0.09848141,2508.7,2508.6,24.75448864]
[1747781696017,3.98513629,2509.4,2508.9,0.7931]
[1747781696206,2.01072829,2509.7,2509.1,0.7931]
[1747781696417,2.01072829,2509.7,2509.4,0.7931]
[1747781696730,2.01072829,2509.7,2509.6,8.7511]
[1747781696912,5.99526827,2509.7,2509.6,10.7511]
[1747781697446,5.99526827,2509.7,2509.6,29.3821]
[1747781697810,5.99526827,2509.7,2509.6,29.60432944]
[1747781698012,5.99526827,2509.7,2509.6,33.50669232]
[1747781698840,5.99526827,2509.7,2509.6,35.50669232]
[1747781699410,3.98453998,2509.7,2509.6,35.50669232]
[1747781699610,3.98453998,2509.7,2509.6,33.50669232]
[1747781699811,3.98453998,2509.7,2509.6,35.50669232]
[1747781700057,3.98453998,2509.7,2509.6,35.91073352]
[1747781700609,3.98453998,2509.7,2509.6,33.91073352]
[1747781700839,3.98453998,2509.7,2509.6,34.28859691]
[1747781701044,3.98453998,2509.7,2509.6,34.06636747]
[1747781701248,4.08428455,2509.9,2509.7,0.7726]
[1747781701249,0.1,2509.9,2509.7,0.7726]
[1747781701544,0.1,2509.9,2509.8,0.7726]
[1747781702112,0.1,2509.9,2509.8,2.7726]
[1747781702313,0.1,2509.9,2509.8,2.785]
[1747781702514,0.1,2509.9,2509.8,10.785]
[1747781702713,0.1,2509.9,2509.8,18.09586111]
[1747781703437,0.1,2509.9,2509.8,14.90835613]
[1747781703612,0.1,2509.9,2509.8,18.09586111]
[1747781704013,3.98356913,2510.4,2510.0,0.7704]
[1747781704349,3.98329665,2510.5,2510.3,0.7704]
[1747781704544,4.08269163,2510.9,2510.5,0.7704]
[1747781704749,3.98298752,2510.7,2510.6,28.866]
[1747781706136,3.98298752,2510.7,2510.6,45.822]
[1747781706544,3.98281127,2510.8,2510.7,8.8093]
[1747781707458,3.98281127,2510.8,2510.7,29.4283]
[1747781707622,3.98281127,2510.8,2510.7,33.33066288]
[1747781708733,3.98281127,2510.8,2510.7,29.4283]
[1747781708975,3.98281127,2510.8,2510.7,8.8093]
[1747781709272,3.98281127,2510.8,2510.7,21.4273]
[1747781709767,3.98281127,2510.8,2510.7,21.4253]
[1747781711937,3.98281127,2510.8,2510.7,0.8093]
[1747781712178,3.98295296,2510.7,2510.6,17.202]
[1747781712474,3.98295296,2510.7,2510.6,37.816]
[1747781714691,3.98295296,2510.7,2510.6,17.202]
[1747781714886,3.98295296,2510.7,2510.6,37.815]
[1747781715900,3.98295296,2510.7,2510.6,17.202]
[1747781716081,3.98295296,2510.7,2510.6,37.815]
[1747781718295,3.98295296,2510.7,2510.6,17.202]
[1747781718470,3.98295296,2510.7,2510.6,37.815]
[1747781718889,3.98295296,2510.7,2510.6,17.202]
[1747781720268,4.76085296,2510.7,2510.6,17.202]
[1747781720474,3.98390502,2510.1,2510.0,8.955]
[1747781720720,3.98390502,2510.1,2510.0,20.613]
[1747781726103,3.98422247,2509.9,2509.8,17.194]
[1747781726307,3.98422247,2509.9,2509.8,45.945]
[1747781726533,3.98422247,2509.9,2509.8,49.84736288]
[1747781727237,3.98422247,2509.9,2509.8,50.06984456]
[1747781727403,3.98422247,2509.9,2509.8,46.54725409]
[1747781727603,3.98422247,2509.9,2509.8,46.54825409]
[1747781732558,3.98420162,2510.0,2509.9,8.7605]
[1747781732723,3.98420162,2510.0,2509.9,10.7605]
[1747781733271,3.98420162,2510.0,2509.9,14.66286288]
[1747781733446,3.98420162,2510.0,2509.9,15.26511697]
[1747781734155,3.98420162,2510.0,2509.9,34.01811697]
[1747781734359,3.98420162,2510.0,2509.9,36.01811697]
[1747781735748,3.98420162,2510.0,2509.9,15.26511697]
[1747781735953,3.98420162,2510.0,2509.9,34.01711697]
[1747781736153,3.9831116,2510.6,2509.9,36.01711697]
[1747781736353,3.98374631,2510.2,2510.1,8.0]
[1747781736553,3.98374631,2510.2,2510.1,8.7505]
[1747781736751,3.98374631,2510.2,2510.1,29.5025]
[1747781736956,3.98374631,2510.2,2510.1,29.72498168]
[1747781737153,3.98374631,2510.2,2510.1,28.97448168]
[1747781737359,3.98374631,2510.2,2510.1,30.39700813]
[1747781737856,3.98374631,2510.2,2510.1,33.52728054]
[1747781738855,3.98374631,2510.2,2510.1,31.52728054]
[1747781739262,3.98374631,2510.2,2510.1,33.52728054]
[1747781740543,3.98374631,2510.2,2510.1,30.10475409]
[1747781740750,3.98374631,2510.2,2510.1,29.35425409]
[1747781740949,3.98374631,2510.2,2510.1,20.39825409]
[1747781741143,3.98374631,2510.2,2510.1,0.60225409]
[1747781741349,3.98374631,2510.2,2510.1,12.17577241]
[1747781742169,4.76054631,2510.2,2510.1,12.17577241]
[1747781742568,14.94054631,2510.2,2510.1,11.796]
[1747781748248,3.98422247,2509.9,2509.8,17.194]
[1747781748459,3.98422247,2509.9,2509.8,37.949]
[1747781752576,3.98422247,2509.9,2509.8,42.44153598]
[1747781754278,3.98422247,2509.9,2509.8,38.7197]
[1747781754966,3.98422247,2509.9,2509.8,48.7197]
[1747781755167,3.98396255,2510.1,2510.0,0.8286]
[1747781755347,3.98396255,2510.1,2510.0,10.8286]
[1747781755946,3.98396255,2510.1,2510.0,14.73096288]
[1747781756360,3.98396255,2510.1,2510.0,15.11137071]
[1747781758060,3.7705787,2510.3,2510.1,8.7953]
[1747781758382,3.7705787,2510.3,2510.2,11.79]
[1747781758583,3.7705787,2510.3,2510.2,14.19727707]
[1747781758787,3.98336406,2510.5,2510.3,8.833]
[1747781758958,3.98336406,2510.5,2510.4,22.508]
[1747781759486,0.1,2510.9,2510.5,8.0]
[1747781759655,3.98286495,2510.8,2510.7,8.0]
[1747781759850,3.98286495,2510.8,2510.7,47.826]
[1747781760952,0.1,2510.9,2510.8,0.8105]
[1747781761157,4.08273013,2510.9,2510.8,2.8105]
[1747781761376,0.1,2510.9,2510.8,2.7788]
[1747781761557,0.1,2510.9,2510.8,6.87885539]
[1747781761887,4.0826357,2510.9,2510.8,6.87885539]
[1747781762298,4.0826357,2510.9,2510.8,7.26718982]
[1747781763359,4.0826357,2510.9,2510.8,7.64759765]
[1747781763563,4.0826357,2510.9,2510.8,7.44990514]
[1747781763760,4.0826357,2510.9,2510.8,28.07690514]
[1747781764396,4.0826357,2510.9,2510.8,26.07690514]
[1747781764700,4.0826357,2510.9,2510.8,28.07690514]
[1747781765467,4.0826357,2510.9,2510.8,26.07690514]
[1747781766596,4.0826357,2510.9,2510.8,28.07690514]
[1747781766997,4.0826357,2510.9,2510.8,5.06949731]
[1747781767200,4.8938357,2510.9,2510.8,11.671]
[1747781767375,4.8938357,2510.9,2510.8,20.625]
[1747781767894,3.98279432,2510.8,2510.7,25.196]
[1747781768101,3.98279432,2510.8,2510.7,45.821]
[1747781769370,3.98279432,2510.8,2510.7,37.821]
[1747781770205,3.98279432,2510.8,2510.7,41.6031]
[1747781771098,3.98279432,2510.8,2510.7,37.821]
[1747781772306,10.18,2511.8,2510.7,42.3193256]
[1747781772508,0.66666667,2513.0,2511.8,0.3112]
[1747781772680,0.66666667,2513.0,2512.0,8.0]
[1747781772870,0.66666667,2513.0,2512.2,8.55]
[1747781773205,5.96889759,2512.8,2512.3,2.0]
[1747781773401,1.98924167,2512.8,2512.4,8.953]
[1747781773612,3.98005847,2512.6,2512.5,2.0]
[1747781773785,3.98005847,2512.6,2512.5,16.058]
[1747781773985,3.98005847,2512.6,2512.5,2.0]
[1747781774192,3.98005847,2512.6,2512.5,25.011]
[1747781774504,3.98005847,2512.6,2512.4,0.37627647]
[1747781774505,3.9800995,2512.5,2512.4,0.37627647]
[1747781774801,3.9800995,2512.5,2512.4,8.37627647]
[1747781774974,3.9800995,2512.5,2512.4,33.38127647]
[1747781775174,3.9800995,2512.5,2512.4,10.0]
[1747781775368,3.9800995,2512.5,2512.4,8.0]
[1747781775574,3.9800995,2512.5,2512.4,31.005]
[1747781776504,3.98041635,2512.3,2512.2,0.40422652]
[1747781776709,3.98041635,2512.3,2512.2,31.005]
[1747781776882,3.98041635,2512.3,2512.2,8.39319922]
[1747781777076,3.98030511,2512.4,2512.2,31.39819922]
[1747781777277,3.98030511,2512.4,2512.3,8.0]
[1747781777805,3.98030511,2512.4,2512.3,10.0]
[1747781777985,3.9800375,2512.6,2512.3,10.0]
[1747781778181,2.08924167,2512.9,2512.4,2.0]
[1747781778389,3.97992429,2512.7,2512.4,3.3286]
[1747781778572,3.97994109,2512.6,2512.5,8.0]
[1747781778773,3.97994109,2512.6,2512.5,31.002]
[1747781779107,3.97994109,2512.6,2512.5,33.002]
[1747781779311,2.08924167,2512.9,2512.5,33.002]
[1747781779510,6.06873551,2512.9,2512.6,10.0]
[1747781779813,3.9797827,2512.7,2512.6,11.90236288]
[1747781779978,3.9797827,2512.7,2512.6,13.90236288]
[1747781780489,3.9797827,2512.7,2512.6,33.002]
[1747781781216,3.9797827,2512.7,2512.6,31.002]
[1747781781385,3.9797827,2512.7,2512.6,33.002]
[1747781782810,3.9797827,2512.7,2512.6,31.002]
[1747781783342,3.9800995,2512.5,2512.4,17.9626]
[1747781783515,3.9800995,2512.5,2512.4,40.182]
[1747781784074,3.9800995,2512.5,2512.4,40.181]
[1747781784278,3.9800995,2512.5,2512.4,31.233]
[1747781784712,4.7767995,2512.5,2512.4,17.184]
[1747781785913,3.9800995,2512.5,2512.4,17.184]
[1747781788891,3.9800995,2512.5,2512.4,40.181]
[1747781789693,4.7654995,2512.5,2512.4,31.233]
[1747781790920,13.43749257,2512.8,2512.4,17.184]
[1747781791087,3.9800995,2512.5,2512.4,17.184]
[1747781794015,4.5501995,2512.5,2512.4,17.184]
[1747781796829,3.98184279,2511.4,2511.3,17.182]
[1747781797025,3.98184279,2511.4,2511.3,40.181]
[1747781797228,3.98184279,2511.4,2511.3,48.181]
[1747781797712,3.98184279,2511.4,2511.3,31.232]
[1747781797913,3.98184279,2511.4,2511.3,40.181]
[1747781798370,3.98184279,2511.4,2511.3,44.27351226]
[1747781798638,3.98184279,2511.4,2511.3,45.03401226]
[1747781799792,3.98184279,2511.4,2511.3,47.03401226]
[1747781799998,3.98184279,2511.4,2511.3,55.03401226]
[1747781800299,3.98057479,2512.2,2511.5,0.8189]
[1747781800496,3.9813672,2511.7,2511.6,0.88189]
[1747781800740,3.9813672,2511.7,2511.6,10.88189]
[1747781801525,3.9813672,2511.7,2511.6,8.88189]
[1747781801723,3.9813672,2511.7,2511.6,10.88189]
[1747781802101,3.9813672,2511.7,2511.6,11.25905571]
[1747781802662,3.9813672,2511.7,2511.6,9.25905571]
[1747781803961,3.9813672,2511.7,2511.6,11.25905571]
[1747781806149,3.9813672,2511.7,2511.6,23.05516571]
[1747781807789,3.9813672,2511.7,2511.6,22.678]
[1747781810746,3.9813672,2511.7,2511.6,22.679]
[1747781811551,3.9813672,2511.7,2511.6,33.443]
[1747781811873,3.98129026,2511.8,2511.7,8.0]
[1747781812091,3.9813672,2511.7,2511.6,8.764]
[1747781812254,3.9813672,2511.7,2511.6,8.0]
[1747781812438,3.9813672,2511.7,2511.6,30.679]
[1747781813274,3.9813672,2511.7,2511.6,33.7469]
[1747781813501,3.9813672,2511.7,2511.6,30.679]
[1747781814677,3.9813672,2511.7,2511.6,31.05786074]
[1747781814912,3.98120869,2511.8,2511.7,8.7569]
[1747781815286,3.98120869,2511.8,2511.7,10.7569]
[1747781815481,3.98120869,2511.8,2511.7,14.13837607]
[1747781815669,3.98120869,2511.8,2511.7,12.13837607]
[1747781815873,3.98120869,2511.8,2511.7,14.13837607]
[1747781816402,3.98120869,2511.8,2511.7,14.51723681]
[1747781817819,3.98120869,2511.8,2511.7,14.9930263]
[1747781818215,3.98120869,2511.8,2511.7,12.2361263]
[1747781818374,3.98120869,2511.8,2511.7,31.53365023]
[1747781818917,3.98120869,2511.8,2511.7,8.85465023]
[1747781819120,3.98120869,2511.8,2511.7,0.85465023]
[1747781819415,3.98120869,2511.8,2511.7,14.58365023]
[1747781819576,3.98120869,2511.8,2511.7,13.729]
[1747781820011,3.98184279,2511.4,2511.3,18.35616628]
[1747781820212,3.98184279,2511.4,2511.3,28.96231186]
[1747781820419,3.98184279,2511.4,2511.3,51.64131186]
[1747781820911,3.98184279,2511.4,2511.3,28.19181186]
[1747781821112,3.98184279,2511.4,2511.3,48.26466628]
[1747781821317,3.98184279,2511.4,2511.3,48.64342074]
[1747781821501,3.98184279,2511.4,2511.3,40.64342074]
[1747781821703,3.98184279,2511.4,2511.3,31.28975446]
[1747781821907,3.98184279,2511.4,2511.3,17.56075446]
[1747781822081,3.98184279,2511.4,2511.3,40.23975446]
[1747781822620,3.98184279,2511.4,2511.3,39.861]
[1747781824128,3.98184279,2511.4,2511.3,40.26536305]
[1747781824329,3.98184279,2511.4,2511.3,41.03586305]
[1747781824630,3.98184279,2511.4,2511.3,44.93822593]
[1747781824825,3.98118616,2511.9,2511.3,54.93822593]
[1747781825026,3.98184279,2511.4,2511.3,52.93822593]
[1747781825215,3.98184279,2511.4,2511.3,54.93822593]
[1747781825416,3.98184279,2511.4,2511.3,55.31670863]
[1747781827821,3.98184279,2511.4,2511.3,53.31670863]
[1747781828137,3.98184279,2511.4,2511.3,48.64384575]
[1747781828487,3.98184279,2511.4,2511.3,25.96484575]
[1747781828820,3.98184279,2511.4,2511.3,17.96484575]
[1747781829017,3.98184279,2511.4,2511.3,40.64584575]
[1747781829591,3.98184279,2511.4,2511.3,31.69484575]
[1747781829784,3.98184279,2511.4,2511.3,40.64584575]
[1747781830386,3.98184279,2511.4,2511.3,40.26736305]
[1747781831019,3.98184279,2511.4,2511.3,44.16972593]
[1747781831328,3.98184279,2511.4,2511.3,46.16972593]
[1747781831538,3.9810502,2511.9,2511.3,46.16972593]
[1747781831539,0.1,2512.9,2511.7,5.99410426]
[1747781831747,0.66666667,2513.0,2512.6,0.55]
[1747781831923,0.66666667,2513.0,2512.7,17.186]
[1747781832241,3.98002258,2512.6,2512.2,17.186]
[1747781832442,0.5701,2512.8,2512.3,30.239]
[1747781832793,3.97991735,2512.7,2512.3,30.239]
[1747781833027,4.54976077,2512.8,2512.3,30.239]
[1747781833328,3.97986021,2512.7,2512.3,30.239]
[1747781833724,3.97986021,2512.7,2512.4,0.37768962]
[1747781834693,3.97979915,2512.7,2512.4,0.37768962]
[1747781835095,3.97979915,2512.7,2512.3,30.239]
[1747781837037,3.97979915,2512.7,2512.3,8.0]
[1747781837243,3.97979915,2512.7,2512.4,22.237]
[1747781838058,3.97990441,2512.7,2512.4,22.237]
[1747781838461,3.97997768,2512.6,2512.4,22.237]
[1747781838658,3.98025792,2512.4,2512.3,8.0]
[1747781838854,3.98024389,2512.5,2512.3,30.234]
[1747781839153,3.97999435,2512.6,2512.3,30.234]
[1747781839725,3.97965692,2512.8,2512.3,30.234]
[1747781839941,4.64599722,2513.0,2512.3,34.13636288]
[1747781840139,4.64599722,2513.0,2512.4,0.7742]
[1747781840140,0.66666667,2513.0,2512.4,0.7742]
[1747781840447,0.66666667,2513.0,2512.7,8.0]
[1747781840617,0.66666667,2513.0,2512.8,13.285]
[1747781840818,0.66666667,2513.0,2512.9,8.949]
[1747781841215,0.66666667,2513.0,2512.9,20.80725812]
[1747781841556,0.66666667,2513.0,2512.9,21.58145812]
[1747781842024,0.66666667,2513.0,2512.9,25.56092407]
[1747781842226,0.66666667,2513.0,2512.9,21.58145812]
[1747781842439,0.66666667,2513.0,2512.9,26.11092407]
[1747781842865,0.66666667,2513.0,2512.9,18.48718397]
[1747781843016,0.66666667,2513.0,2512.9,24.98718397]
[1747781843343,0.66666667,2513.0,2512.9,26.98718397]
[1747781843748,0.45796667,2513.0,2512.9,26.98718397]
[1747781845255,0.45796667,2513.0,2512.9,27.46297346]
[1747781845757,4.43727427,2513.0,2512.9,15.40824939]
[1747781845961,4.43727427,2513.0,2512.9,31.08104939]
[1747781846163,4.43727427,2513.0,2512.9,0.85204939]
[1747781846538,3.9797827,2512.7,2512.6,0.40176741]